lending/lending_fUSD_20260124
["ID","MTS","AMOUNT","RATE_DAILY","PERIOD"]
[403221144,1769271042138,-3247.44,0.00013699,2]
[403221145,1769271042147,-433.0,0.00013711,2]
[403221146,1769271042160,-587.0,0.00013842,2]
[403221147,1769271042170,-2351.0,0.00013884,2]
[403221148,1769271042180,-924.01,0.00013941,2]
[403221149,1769271042190,-197.15,0.00013956,2]
[403221150,1769271042200,-885.86649465,0.00014026,2]
[403221151,1769271042210,-181.08010149,0.00014026,2]
[403221152,1769271042220,-200.0,0.00014214,2]
[403221153,1769271042230,-500.0,0.00014215,2]
[403221154,1769271042240,-924.01,0.00014215,2]
[403221155,1769271042250,-5175.68533025,0.00014275,2]
[403221156,1769271042260,-14158.0246357,0.00014275,2]
[403221157,1769271042270,-3247.44,0.00014384,2]
[403221158,1769271042280,-150.0,0.00014473,2]
[403221159,1769271042291,-924.03772844,0.00014488,2]
[403221160,1769271042300,-186.54,0.000145,2]
[403221161,1769271042310,-918.64355495,0.00014574,2]
[403221162,1769271042320,-187.78006525,0.00014574,2]
[403221163,1769271042330,-334.5472959,0.00014847,2]
[403221164,1769271042340,-651.0,0.00014985,2]
[403221165,1769271042350,-94682.58604316,0.00015,2]
[403221166,1769271042361,-5175.68533025,0.00015,2]
[403221167,1769271042371,-14158.0246357,0.00015,2]
[403221168,1769271042380,-151.0,0.00015002,2]
[403221169,1769271042390,-151.0,0.00015011,2]
[403221170,1769271042402,-151.0,0.00015068,2]
[403221171,1769271042412,-900.0,0.00015068,2]
[403221172,1769271042421,-3247.44,0.00015068,2]
[403221173,1769271042431,-952.63336648,0.00015122,2]
[403221174,1769271042443,-194.72792766,0.00015122,2]
[403221175,1769271042452,-250.0,0.00015162,2]
[403221176,1769271042463,-823.0,0.00015204,2]
[403221177,1769271042474,-3292.0,0.00015272,2]
[403221178,1769271042484,-500.0,0.00015397,2]
[403221179,1769271042493,-987.88080104,0.0001567,2]
[403221180,1769271042503,-201.93286099,0.0001567,2]
[403221181,1769271042512,-5175.68533025,0.00015725,2]
[403221182,1769271042522,-14158.0246357,0.00015725,2]
[403221183,1769271042535,-3247.44,0.00015753,2]
[403221184,1769271042545,-173.62225723,0.00015873,2]
[403221185,1769271042554,-500.0,0.00015873,2]
[403221186,1769271042564,-500.0,0.00015873,2]
[403221187,1769271042574,-500.0,0.00015873,2]
[403221188,1769271042584,-501.32971868,0.00015873,2]
[403221189,1769271042594,-500.0,0.00015873,2]
[403221190,1769271042603,-500.0,0.00015873,2]
[403221191,1769271042613,-500.0,0.00015873,2]
[403221192,1769271042622,-166.2984837,0.00015873,2]
[403221193,1769271042631,-500.0,0.00015873,2]
[403221194,1769271042642,-500.0,0.00015873,2]
[403221195,1769271042652,-500.0,0.00015873,2]
[403221196,1769271042661,-278.24022797,0.00015873,2]
[403221197,1769271042671,-170.17092774,0.00015873,2]
[403221198,1769271042681,-500.0,0.00015873,2]
[403221199,1769271042690,-500.0,0.00015873,2]
[403221200,1769271042700,-500.0,0.00015873,2]
[403221201,1769271042709,-167.94526228,0.00015873,2]
[403221202,1769271042719,-500.0,0.00015873,2]
[403221203,1769271042729,-500.0,0.00015873,2]
[403221204,1769271042739,-225.21984276,0.00015873,2]
[403221205,1769271042748,-239.10627716,0.00015873,2]
[403221206,1769271042758,-500.0,0.00015873,2]
[403221207,1769271042767,-500.0,0.00015873,2]
[403221208,1769271042776,-500.0,0.00015873,2]
[403221209,1769271042786,-500.0,0.00015873,2]
[403221210,1769271042796,-500.0,0.00015873,2]
[403221211,1769271042806,-500.0,0.00015873,2]
[403221212,1769271042816,-500.0,0.00015873,2]
[403221213,1769271042826,-500.0,0.00015873,2]
[403221214,1769271042835,-500.0,0.00015873,2]
[403221215,1769271042845,-500.0,0.00015873,2]
[403221216,1769271042854,-166.64412679,0.00015873,2]
[403221217,1769271042864,-500.0,0.00015873,2]
[403221218,1769271042873,-501.22866478,0.00015873,2]
[403221219,1769271042883,-500.0,0.00015873,2]
[403221220,1769271042893,-500.0,0.00015873,2]
[403221221,1769271042903,-500.0,0.00015873,2]
[403221222,1769271042915,-177.5178643,0.00015873,2]
[403221223,1769271042925,-500.0,0.00015873,2]
[403221224,1769271042935,-500.0,0.00015873,2]
[403221225,1769271042944,-500.0,0.00015873,2]
[403221226,1769271042954,-500.0,0.00015873,2]
[403221227,1769271042963,-500.0,0.00015873,2]
[403221228,1769271042972,-500.0,0.00015873,2]
[403221229,1769271042982,-489.57842878,0.00015873,2]
[403221230,1769271042992,-500.75682028,0.00015873,2]
[403221231,1769271043002,-150.0,0.00016,2]
[403221232,1769271043011,-253.570956,0.00016,2]
[403221233,1769271043021,-952.25318177,0.00016036,2]
[403221234,1769271043031,-150.59533011,0.00016067,2]
[403221235,1769271043041,-150.0,0.000161,2]
[403221236,1769271043051,-150.0,0.000162,2]
[403221238,1769271043061,-346.92554585,0.00016216,2]
[403221239,1769271043071,-599.60298507,0.00016217,2]
[403221240,1769271043080,-5432.0,0.00016217,2]
[403221242,1769271043090,-1024.43239068,0.00016218,2]
[403221243,1769271043099,-209.40437684,0.00016218,2]
[403221245,1769271043109,-324.33,0.00016277,2]
[403221247,1769271043119,-159.59843399,0.00016281,2]
[403221249,1769271043128,-150.0,0.000163,2]
[403221250,1769271043138,-152.0,0.00016306,3]
[403221253,1769271043148,-500.0,0.00016328,2]
[403221255,1769271043158,-150.0,0.00016328,2]
[403221257,1769271043168,-500.0,0.00016328,2]
[403221259,1769271043177,-150.0,0.00016328,2]
[403221261,1769271043186,-150.0,0.00016328,2]
[403221263,1769271043196,-500.0,0.00016328,2]
[403221265,1769271043205,-150.0,0.00016328,2]
[403221267,1769271043215,-194.93473074,0.00016338,2]
[403221269,1769271043225,-6690.0,0.00016356,2]
[403221270,1769271043235,-500.0,0.00016356,2]
[403221272,1769271043244,-500.0,0.00016356,2]
[403221274,1769271043254,-500.0,0.00016383,2]
[403221275,1769271043264,-164.21135863,0.00016383,2]
[403221276,1769271043275,-500.0,0.00016383,2]
[403221277,1769271043284,-150.0,0.00016383,2]
[403221278,1769271043294,-150.0,0.00016383,2]
[403221281,1769271043308,-500.0,0.00016383,2]
[403221282,1769271043318,-836.0,0.000164,2]
[403221283,1769271043327,-150.0,0.000164,2]
[403221284,1769271043337,-1034.24079626,0.00016421,2]
[403221285,1769271043348,-500.0,0.00016421,2]
[403221286,1769271043357,-1000.0,0.00016421,2]
[403221287,1769271043367,-607.15821099,0.00016421,2]
[403221288,1769271043377,-544.47711737,0.00016421,2]
[403221289,1769271043387,-542.33856448,0.00016421,2]
[403221290,1769271043397,-1000.0,0.00016421,2]
[403221291,1769271043410,-1000.0,0.00016421,2]
[403221292,1769271043420,-505.83466941,0.00016421,2]
[403221293,1769271043431,-1000.0,0.00016421,2]
[403221294,1769271043442,-1000.0,0.00016421,2]
[403221295,1769271043451,-1000.0,0.00016421,2]
[403221296,1769271043461,-1000.0,0.00016421,2]
[403221297,1769271043472,-1000.0,0.00016421,2]
[403221298,1769271043483,-500.0,0.00016421,2]
[403221299,1769271043492,-1003.96785498,0.00016421,2]
[403221300,1769271043502,-303.1127939,0.00016421,2]
[403221301,1769271043511,-1000.0,0.00016421,2]
[403221302,1769271043522,-500.0,0.00016421,2]
[403221303,1769271043531,-1000.0,0.00016421,2]
[403221304,1769271043541,-500.0,0.00016421,2]
[403221305,1769271043551,-1000.0,0.00016421,2]
[403221306,1769271043560,-1000.0,0.00016421,2]
[403221307,1769271043570,-375.92645048,0.00016421,2]
[403221308,1769271043579,-1000.0,0.00016421,2]
[403221309,1769271043589,-1007.32533855,0.00016421,2]
[403221310,1769271043598,-1000.0,0.00016421,2]
[403221311,1769271043608,-1000.0,0.00016421,2]
[403221312,1769271043617,-1000.0,0.00016421,2]
[403221313,1769271043627,-1000.0,0.00016421,2]
[403221314,1769271043636,-1000.0,0.00016421,2]
[403221315,1769271043646,-1000.0,0.00016421,2]
[403221316,1769271043655,-1000.0,0.00016421,2]
[403221317,1769271043664,-1000.0,0.00016421,2]
[403221318,1769271043673,-1102.07325121,0.00016437,5]
[403221319,1769271043686,-500.0,0.00016437,2]
[403221320,1769271043696,-500.0,0.00016437,2]
[403221321,1769271043706,-500.0,0.00016437,2]
[403221322,1769271043716,-500.0,0.00016438,2]
[403221323,1769271043725,-500.0,0.00016438,2]
[403221325,1769271043734,-200.0,0.00016438,2]
[403221326,1769271043744,-200.0,0.00016438,2]
[403221327,1769271043753,-572.99013325,0.00016438,2]
[403221328,1769271043763,-1048.10022407,0.00016438,2]
[403221329,1769271043772,-1048.10022407,0.00016438,2]
[403221330,1769271043782,-1048.10022407,0.00016438,2]
[403221331,1769271043792,-1048.10022407,0.00016438,2]
[403221332,1769271043801,-1048.10022407,0.00016438,2]
[403221333,1769271043811,-1048.10022407,0.00016438,2]
[403221334,1769271043821,-1048.10022407,0.00016438,2]
[403221335,1769271043831,-1048.10022407,0.00016438,2]
[403221336,1769271043841,-1048.10022407,0.00016438,2]
[403221337,1769271043850,-1048.10022407,0.00016438,2]
[403221338,1769271043860,-1048.10022407,0.00016438,2]
[403221339,1769271043870,-1048.10022407,0.00016438,2]
[403221341,1769271043880,-1048.10022407,0.00016438,2]
[403221343,1769271043889,-1048.10022407,0.00016438,2]
[403221345,1769271043899,-1048.10022407,0.00016438,2]
[403221346,1769271043908,-1048.10022407,0.00016438,2]
[403221348,1769271043918,-1048.10022407,0.00016438,2]
[403221349,1769271043928,-1048.10022407,0.00016438,2]
[403221350,1769271043938,-1048.10022407,0.00016438,2]
[403221351,1769271043948,-1048.10022407,0.00016438,2]
[403221352,1769271043957,-1048.10022407,0.00016438,2]
[403221353,1769271043967,-1048.10022407,0.00016438,2]
[403221354,1769271043977,-1048.10022407,0.00016438,2]
[403221355,1769271043986,-1048.10022407,0.00016438,2]
[403221356,1769271043997,-1048.10022407,0.00016438,2]
[403221357,1769271044007,-1048.10022407,0.00016438,2]
[403221358,1769271044016,-1048.10022407,0.00016438,2]
[403221359,1769271044353,-1048.10022407,0.00016438,2]
[403221360,1769271044367,-1048.10022407,0.00016438,2]
[403221361,1769271044377,-1048.10022407,0.00016438,2]
[403221362,1769271044386,-1048.10022407,0.00016438,2]
[403221363,1769271044396,-1048.10022407,0.00016438,2]
[403221364,1769271044410,-1048.10022407,0.00016438,2]
[403221365,1769271044419,-1048.10022407,0.00016438,2]
[403221366,1769271044430,-1048.10022407,0.00016438,2]
[403221367,1769271044440,-1048.10022407,0.00016438,2]
[403221368,1769271044450,-1048.10022407,0.00016438,2]
[403221369,1769271044459,-1048.10022407,0.00016438,2]
[403221370,1769271044468,-1048.10022407,0.00016438,2]
[403221371,1769271044479,-1048.10022407,0.00016438,2]
[403221372,1769271044488,-1048.10022407,0.00016438,2]
[403221373,1769271044498,-1048.10022407,0.00016438,2]
[403221374,1769271044507,-1048.10022407,0.00016438,2]
[403221375,1769271044516,-1048.10022407,0.00016438,2]
[403221376,1769271044526,-1048.10022407,0.00016438,2]
[403221377,1769271044535,-1048.10022407,0.00016438,2]
[403221378,1769271044544,-1033.12736373,0.00016438,2]
[403221379,1769271044554,-1033.12736373,0.00016438,2]
[403221380,1769271044562,-1033.12736373,0.00016438,2]
[403221381,1769271044573,-1033.12736373,0.00016438,2]
[403221382,1769271044582,-1033.12736373,0.00016438,2]
[403221383,1769271044591,-1033.12736373,0.00016438,2]
[403221384,1769271044601,-1033.12736373,0.00016438,2]
[403221385,1769271044610,-1033.12736373,0.00016438,2]
[403221386,1769271044619,-1033.12736373,0.00016438,2]
[403221387,1769271044629,-1033.12736373,0.00016438,2]
[403221388,1769271044638,-1033.12736373,0.00016438,2]
[403221389,1769271044648,-1033.12736373,0.00016438,2]
[403221390,1769271044657,-1033.12736373,0.00016438,2]
[403221391,1769271044666,-1033.12736373,0.00016438,2]
[403221392,1769271044675,-1033.12736373,0.00016438,2]
[403221393,1769271044685,-1033.12736373,0.00016438,2]
[403221394,1769271044694,-1033.12736373,0.00016438,2]
[403221395,1769271044704,-1033.12736373,0.00016438,2]
[403221396,1769271044713,-1033.12736373,0.00016438,2]
[403221397,1769271044723,-1033.12736373,0.00016438,2]
[403221398,1769271044732,-1033.12736373,0.00016438,2]
[403221399,1769271044741,-1033.12736373,0.00016438,2]
[403221400,1769271044751,-1033.12736373,0.00016438,2]
[403221401,1769271044760,-1033.12736373,0.00016438,2]
[403221402,1769271044770,-1033.12736373,0.00016438,2]
[403221403,1769271044779,-1033.12736373,0.00016438,2]
[403221404,1769271044788,-1033.12736373,0.00016438,2]
[403221405,1769271044797,-1033.12736373,0.00016438,2]
[403221406,1769271044807,-1033.12736373,0.00016438,2]
[403221407,1769271044817,-1033.12736373,0.00016438,2]
[403221408,1769271044827,-1033.12736373,0.00016438,2]
[403221409,1769271044835,-1022.79609011,0.00016438,2]
[403221410,1769271044845,-1022.79609011,0.00016438,2]
[403221411,1769271044855,-1022.79609011,0.00016438,2]
[403221412,1769271044864,-1022.79609011,0.00016438,2]
[403221413,1769271044873,-1022.79609011,0.00016438,2]
[403221414,1769271044883,-1022.79609011,0.00016438,2]
[403221415,1769271044892,-1022.79609011,0.00016438,2]
[403221416,1769271044902,-1022.79609011,0.00016438,2]
[403221417,1769271044911,-1022.79609011,0.00016438,2]
[403221418,1769271044920,-1022.79609007,0.00016438,2]
[403221419,1769271044929,-150.0,0.00016438,2]
[403221420,1769271044938,-300.0,0.00016438,2]
[403221421,1769271044947,-300.0,0.00016438,2]
[403221422,1769271044956,-300.0,0.00016438,2]
[403221423,1769271044965,-300.0,0.00016438,2]
[403221424,1769271044974,-300.0,0.00016438,2]
[403221425,1769271044983,-300.0,0.00016438,2]
[403221426,1769271044993,-300.0,0.00016438,2]
[403221427,1769271045002,-300.0,0.00016438,2]
[403221428,1769271045011,-300.0,0.00016438,2]
[403221429,1769271045019,-380.48629979,0.00016438,2]
[403221430,1769271045028,-797.77,0.00016438,2]
[403221431,1769271045037,-797.77,0.00016438,2]
[403221432,1769271045046,-797.77,0.00016438,2]
[403221433,1769271045055,-797.77,0.00016438,2]
[403221434,1769271045065,-797.77,0.00016438,2]
[403221435,1769271045075,-797.77,0.00016438,2]
[403221436,1769271045084,-797.77,0.00016438,2]
[403221437,1769271045093,-797.77,0.00016438,2]
[403221438,1769271045103,-797.77,0.00016438,2]
[403221439,1769271045112,-797.77,0.00016438,2]
[403221440,1769271045121,-797.77,0.00016438,2]
[403221441,1769271045130,-797.77,0.00016438,2]
[403221442,1769271045139,-797.77,0.00016438,2]
[403221443,1769271045148,-797.77,0.00016438,2]
[403221444,1769271045157,-797.77,0.00016438,2]
[403221445,1769271045166,-797.77,0.00016438,2]
[403221446,1769271045175,-797.77,0.00016438,2]
[403221447,1769271045184,-797.77,0.00016438,2]
[403221448,1769271045193,-797.77,0.00016438,2]
[403221449,1769271045202,-797.77,0.00016438,2]
[403221450,1769271045212,-797.77,0.00016438,2]
[403221451,1769271045221,-797.77,0.00016438,2]
[403221452,1769271045230,-797.77,0.00016438,2]
[403221453,1769271045239,-797.89,0.00016438,2]
[403221454,1769271045248,-316.743665,0.00016438,2]
[403221455,1769271045257,-900.0,0.00016438,2]
[403221456,1769271045265,-3247.44,0.00016438,2]
[403221457,1769271045274,-800.0,0.00016438,2]
[403221458,1769271045284,-151.0,0.00016438,2]
[403221459,1769271045294,-165.26,0.0001644,2]
[403221460,1769271045303,-5175.68533025,0.0001645,2]
[403221461,1769271045313,-14158.0246357,0.0001645,2]
[403221462,1769271045324,-500.0,0.00016492,2]
[403221463,1769271045333,-500.0,0.00016492,2]
[403221464,1769271045343,-150.0,0.00016493,2]
[403221465,1769271045353,-500.0,0.00016547,2]
[403221466,1769271045362,-200.0,0.00016548,2]
[403221467,1769271045372,-1301.0,0.000166,2]
[403221468,1769271045381,-500.0,0.00016602,2]
[403221469,1769271045391,-500.0,0.00016657,2]
[403221470,1769271045402,-1152.0,0.00016699,2]
[403221471,1769271045412,-2368.5,0.000167,2]
[403221472,1769271045422,-857.0,0.0001672,2]
[403221473,1769271045431,-194.93473072,0.00016729,2]
[403221474,1769271045441,-1062.33638913,0.00016766,2]
[403221475,1769271045451,-217.15233878,0.00016766,2]
[403221476,1769271045461,-4609.0,0.00016799,2]
[403221477,1769271045470,-2368.5,0.00016818,2]
[403221478,1769271045482,-500.0,0.00016845,2]
[403221479,1769271045493,-1000.0,0.000169,2]
[403221480,1769271045503,-2675.0,0.00016931,2]
[403221481,1769271045513,-2368.5,0.00016936,2]
[403221482,1769271045522,-10000.0,0.00016941,2]
[403221483,1769271045532,-197.15,0.00016957,2]
[403221484,1769271045542,-952.25318177,0.00016968,2]
[403221485,1769271045551,-1500.0,0.00016968,2]
[403221486,1769271045560,-1073.98879249,0.00016968,2]
[403221487,1769271045571,-1500.0,0.00016968,2]
[403221488,1769271045579,-1500.0,0.00016968,2]
[403221489,1769271045589,-503.07183782,0.00016968,2]
[403221490,1769271045598,-1500.0,0.00016968,2]
[403221491,1769271045608,-1500.0,0.00016968,2]
[403221492,1769271045617,-1500.0,0.00016968,2]
[403221493,1769271045629,-1502.72708763,0.00016968,2]
[403221494,1769271045640,-1500.0,0.00016968,2]
[403221495,1769271045649,-1500.0,0.00016968,2]
[403221496,1769271045660,-1500.0,0.00016968,2]
[403221497,1769271045670,-1500.0,0.00016968,2]
[403221498,1769271045680,-1500.0,0.00016968,2]
[403221499,1769271045690,-348.0638206,0.00016968,2]
[403221500,1769271045700,-200.0,0.00016983,2]
[403221501,1769271045711,-200.41503,0.00017,2]
[403221502,1769271045721,-192.0,0.00017,2]
[403221503,1769271045731,-250.0,0.00017,2]
[403221504,1769271045741,-11991.23150152,0.00017,2]
[403221505,1769271045752,-3564.19,0.00017025,2]
[403221506,1769271045761,-3063.0,0.00017052,2]
[403221507,1769271045771,-2368.5,0.00017055,2]
[403221508,1769271045781,-446.04265821,0.000171,2]
[403221509,1769271045791,-2000.0,0.000171,2]
[403221510,1769271045800,-312.16,0.00017112,2]
[403221511,1769271045809,-194.93473072,0.00017119,2]
[403221512,1769271045819,-4840.22232773,0.00017134,2]
[403221513,1769271045829,-300.84,0.00017154,2]
[403221514,1769271045838,-478.76391927,0.0001716,2]
[403221515,1769271045848,-500.0,0.00017161,2]
[403221516,1769271045858,-500.0,0.00017161,2]
[403221517,1769271045867,-500.0,0.00017161,2]
[403221518,1769271045878,-500.0,0.00017161,2]
[403221519,1769271045889,-500.0,0.00017161,2]
[403221520,1769271045898,-500.0,0.00017161,2]
[403221521,1769271045908,-238.3883883,0.00017161,2]
[403221522,1769271045919,-2368.5,0.00017173,2]
[403221523,1769271045928,-5175.68533025,0.00017175,2]
[403221524,1769271045938,-14158.0246357,0.00017175,2]
[403221525,1769271045947,-558.29,0.00017178,2]
[403221526,1769271045956,-2461.78,0.00017178,2]
[403221527,1769271045966,-179.89,0.00017178,2]
[403221528,1769271045977,-403.57,0.00017178,2]
[403221529,1769271045986,-150.0,0.00017178,2]
[403221530,1769271045996,-937.06,0.00017178,2]
[403221531,1769271046006,-1117.3,0.00017178,2]
[403221532,1769271046015,-172.14,0.00017178,2]
[403221533,1769271046024,-179.89,0.00017178,2]
[403221534,1769271046033,-150.0,0.00017178,2]
[403221535,1769271046042,-179.89,0.00017178,2]
[403221536,1769271046052,-172.14,0.00017178,2]
[403221537,1769271046062,-150.0,0.00017178,2]
[403221538,1769271046071,-172.14,0.00017178,2]
[403221539,1769271046080,-260.12,0.00017182,2]
[403221540,1769271046090,-150.42,0.0001719,2]
[403221542,1769271046099,-250.7,0.00017198,2]
[403221544,1769271046109,-197.12873386,0.00017241,2]
[403221545,1769271046120,-150.0,0.00017252,2]
[403221546,1769271046130,-800.0,0.0001726,2]
[403221547,1769271046139,-800.0,0.0001726,2]
[403221548,1769271046148,-800.0,0.0001726,2]
[403221549,1769271046158,-800.0,0.0001726,2]
[403221550,1769271046168,-800.0,0.0001726,2]
[403221551,1769271046177,-800.0,0.0001726,2]
[403221552,1769271046187,-800.0,0.0001726,2]
[403221553,1769271046196,-800.0,0.0001726,2]
[403221554,1769271046208,-800.0,0.0001726,2]
[403221555,1769271046218,-800.0,0.0001726,2]
[403221556,1769271046227,-800.0,0.0001726,2]
[403221557,1769271046237,-800.0,0.0001726,2]
[403221559,1769271046255,-800.0,0.0001726,2]
[403221560,1769271046266,-800.0,0.0001726,2]
[403221561,1769271046277,-800.0,0.0001726,2]
[403221562,1769271046287,-800.0,0.0001726,2]
[403221563,1769271046297,-800.0,0.0001726,2]
[403221564,1769271046307,-800.0,0.0001726,2]
[403221565,1769271046316,-800.0,0.0001726,2]
[403221566,1769271046326,-800.0,0.0001726,2]
[403221567,1769271046335,-800.0,0.0001726,2]
[403221568,1769271046345,-800.0,0.0001726,2]
[403221569,1769271046355,-800.0,0.0001726,2]
[403221570,1769271046364,-800.0,0.0001726,2]
[403221571,1769271046374,-800.0,0.0001726,2]
[403221572,1769271046385,-800.0,0.0001726,2]
[403221573,1769271046398,-800.0,0.0001726,2]
[403221574,1769271046411,-800.0,0.0001726,2]
[403221575,1769271046420,-800.0,0.0001726,2]
[403221576,1769271046430,-800.0,0.0001726,2]
[403221577,1769271046439,-800.0,0.0001726,2]
[403221578,1769271046449,-800.0,0.0001726,2]
[403221579,1769271046458,-800.0,0.0001726,2]
[403221580,1769271046468,-800.0,0.0001726,2]
[403221581,1769271046480,-800.0,0.0001726,2]
[403221582,1769271046489,-800.0,0.0001726,2]
[403221583,1769271046498,-800.0,0.0001726,2]
[403221584,1769271046507,-800.0,0.0001726,2]
[403221585,1769271046517,-800.0,0.0001726,2]
[403221586,1769271046526,-800.0,0.0001726,2]
[403221587,1769271046535,-800.0,0.0001726,2]
[403221588,1769271046544,-800.0,0.0001726,2]
[403221589,1769271046554,-800.0,0.0001726,2]
[403221590,1769271046563,-800.0,0.0001726,2]
[403221591,1769271046573,-800.0,0.0001726,2]
[403221592,1769271046582,-800.0,0.0001726,2]
[403221593,1769271046591,-800.0,0.0001726,2]
[403221594,1769271046600,-452.0,0.0001726,2]
[403221595,1769271046609,-500.0,0.0001726,2]
[403221596,1769271046619,-617.0,0.0001726,2]
[403221597,1769271046628,-200.0,0.0001726,2]
[403221598,1769271046637,-200.0,0.0001726,2]
[403221599,1769271046646,-200.0,0.0001726,2]
[403221600,1769271046655,-200.0,0.0001726,2]
[403221601,1769271046664,-200.0,0.0001726,2]
[403221602,1769271046674,-200.0,0.0001726,2]
[403221603,1769271046684,-200.0,0.0001726,2]
[403221604,1769271046695,-200.0,0.0001726,2]
[403221605,1769271046705,-200.0,0.0001726,2]
[403221606,1769271046714,-200.0,0.0001726,2]
[403221607,1769271046725,-200.0,0.0001726,2]
[403221609,1769271046734,-200.0,0.0001726,2]
[403221611,1769271046743,-200.0,0.0001726,2]
[403221612,1769271046752,-200.0,0.0001726,2]
[403221613,1769271046762,-200.0,0.0001726,2]
[403221614,1769271046771,-200.0,0.0001726,2]
[403221615,1769271046781,-200.0,0.0001726,2]
[403221616,1769271046790,-200.0,0.0001726,2]
[403221617,1769271046800,-200.0,0.0001726,2]
[403221618,1769271046809,-200.0,0.0001726,2]
[403221619,1769271046819,-200.0,0.0001726,2]
[403221620,1769271046828,-200.0,0.0001726,2]
[403221621,1769271046838,-200.0,0.0001726,2]
[403221622,1769271046847,-200.0,0.0001726,2]
[403221623,1769271046858,-200.0,0.0001726,2]
[403221624,1769271046867,-200.0,0.0001726,2]
[403221625,1769271046877,-200.0,0.0001726,2]
[403221626,1769271046887,-200.0,0.0001726,2]
[403221627,1769271046897,-200.0,0.0001726,2]
[403221628,1769271046906,-200.0,0.0001726,2]
[403221629,1769271046916,-200.0,0.0001726,2]
[403221630,1769271046926,-200.0,0.0001726,2]
[403221631,1769271046935,-200.0,0.0001726,2]
[403221632,1769271046945,-200.0,0.0001726,2]
[403221633,1769271046954,-200.0,0.0001726,2]
[403221634,1769271046963,-200.0,0.0001726,2]
[403221636,1769271046972,-188.0,0.0001726,2]
[403221637,1769271046982,-1000.0,0.0001726,2]
[403221638,1769271046991,-478.76391924,0.00017283,2]
[403221639,1769271047000,-2368.5,0.00017291,2]
[403221640,1769271047010,-159.59843399,0.00017298,2]
[403221641,1769271047020,-1000.0,0.000173,2]
[403221642,1769271047030,-1101.64283553,0.00017314,2]
[403221643,1769271047040,-225.18697532,0.00017314,2]
[403221644,1769271047050,-162.038,0.00017347,2]
[403221645,1769271047059,-3476.0,0.00017347,2]
[403221646,1769271047068,-615.979,0.00017347,2]
[403221647,1769271047078,-1333.0,0.00017347,2]
[403221648,1769271047087,-1408.0,0.00017347,2]
[403221649,1769271047096,-302.0,0.00017347,2]
[403221650,1769271047105,-1213.523,0.00017348,2]
[403221651,1769271047114,-916.0,0.00017348,2]
[403221652,1769271047124,-4830.0,0.00017348,2]
[403221653,1769271047133,-2442.0,0.00017348,2]
[403221654,1769271047143,-567.0,0.00017348,2]
[403221655,1769271047152,-836.0,0.0001736,2]
[403221656,1769271047161,-2675.0,0.00017369,2]
[403221657,1769271047170,-500.0,0.0001737,2]
[403221658,1769271047180,-500.0,0.00017393,2]
[403221659,1769271047189,-2675.0,0.00017394,2]
[403221660,1769271047199,-2000.0,0.000174,2]
[403221661,1769271047209,-478.76391924,0.00017407,2]
[403221662,1769271047218,-2368.5,0.00017409,2]
[403221663,1769271047228,-200.0,0.00017409,2]
[403221664,1769271047238,-1565.85211666,0.00017417,2]
[403221665,1769271047248,-500.0,0.00017426,2]
[403221666,1769271047257,-500.0,0.00017426,2]
[403221667,1769271047267,-43947.56453849,0.00017452,2]
[403221668,1769271047278,-301.47,0.00017452,2]
[403221669,1769271047288,-150.0,0.00017475,2]
[403221670,1769271047297,-150.0,0.00017475,2]
[403221671,1769271047307,-2675.0,0.00017477,2]
[403221672,1769271047316,-197.15,0.00017477,2]
[403221673,1769271047327,-2675.0,0.00017489,2]